[Event "Titled Tuesday Blitz February 22 Late 2022"]
[White "Berdychevskaya, Natasha"]
[Black "P., Komal Kishore"]
[WhiteFideId "4159322"]
[BlackFideId "5016703"]
[WhiteElo "1780"]
[BlackElo "2051"]
[Result "0-1"]
[Round "11"]
[TimeControl "180+1"]
[Date "2022.02.23"]
[WhiteClock "0:00:01"]
[BlackClock "0:00:05"]

1. Nf3 {[%clk 0:03:00]}  d5 {[%clk 0:02:59]} 2. g3 {[%clk 0:03:00]}  Nf6 {[%clk 0:02:58]} 3. Bg2 {[%clk 0:03:00]}  Bf5 {[%clk 0:02:58]} 4. O-O {[%clk 0:03:00]}  e6 {[%clk 0:02:57]} 5. d4 {[%clk 0:03:00]}  c5 {[%clk 0:02:57]} 6. c4 {[%clk 0:03:00]}  Nc6 {[%clk 0:02:56]} 7. Qb3 {[%clk 0:02:51]}  Qb6 {[%clk 0:02:54]} 8. Qxb6 {[%clk 0:02:49]}  axb6 {[%clk 0:02:53]} 9. cxd5 {[%clk 0:02:38]}  exd5 {[%clk 0:02:51]} 10. Nc3 {[%clk 0:02:32]}  Be7 {[%clk 0:02:46]} 11. Rd1 {[%clk 0:02:26]}  c4 {[%clk 0:02:40]} 12. Bg5 {[%clk 0:02:15]}  O-O-O {[%clk 0:02:24]} 13. Ne5 {[%clk 0:02:08]}  Rhf8 {[%clk 0:02:01]} 14. Rac1 {[%clk 0:01:42]}  h6 {[%clk 0:01:52]} 15. Bxf6 {[%clk 0:01:41]}  gxf6 {[%clk 0:01:53]} 16. Nxd5 {[%clk 0:01:22]}  fxe5 {[%clk 0:01:47]} 17. Nxb6+ {[%clk 0:01:10]}  Kb8 {[%clk 0:01:38]} 18. dxe5 {[%clk 0:01:01]}  Nxe5 {[%clk 0:01:32]} 19. f4 {[%clk 0:00:55]}  Ng4 {[%clk 0:01:22]} 20. Rxd8+ {[%clk 0:00:41]}  Rxd8 {[%clk 0:01:16]} 21. Nxc4 {[%clk 0:00:33]}  Bc5+ {[%clk 0:01:12]} 22. Kf1 {[%clk 0:00:22]}  Nxh2+ {[%clk 0:01:11]} 23. Ke1 {[%clk 0:00:21]}  Ng4 {[%clk 0:01:10]} 24. e4 {[%clk 0:00:20]}  Bb4+ {[%clk 0:01:03]} 25. Ke2 {[%clk 0:00:19]}  Be6 {[%clk 0:00:59]} 26. e5 {[%clk 0:00:17]}  Bxc4+ {[%clk 0:00:45]} 27. Rxc4 {[%clk 0:00:16]}  Rd2+ {[%clk 0:00:46]} 28. Kf3 {[%clk 0:00:15]}  Nh2+ {[%clk 0:00:45]} 29. Ke4 {[%clk 0:00:15]}  Rxb2 {[%clk 0:00:45]} 30. Kf5 {[%clk 0:00:15]}  Rxg2 {[%clk 0:00:41]} 31. Rxb4 {[%clk 0:00:14]}  Rxg3 {[%clk 0:00:39]} 32. Kf6 {[%clk 0:00:14]}  Ra3 {[%clk 0:00:37]} 33. Kxf7 {[%clk 0:00:13]}  Rxa2 {[%clk 0:00:35]} 34. e6 {[%clk 0:00:13]}  Re2 {[%clk 0:00:32]} 35. f5 {[%clk 0:00:12]}  Nf3 {[%clk 0:00:31]} 36. e7 {[%clk 0:00:11]}  Ne5+ {[%clk 0:00:24]} 37. Kf8 {[%clk 0:00:07]}  Nd7+ {[%clk 0:00:21]} 38. Kf7 {[%clk 0:00:07]}  Ne5+ {[%clk 0:00:18]} 39. Kf8 {[%clk 0:00:07]}  Nc6 {[%clk 0:00:11]} 40. Rb3 {[%clk 0:00:04]}  Rxe7 {[%clk 0:00:10]} 41. f6 {[%clk 0:00:04]}  Re5 {[%clk 0:00:09]} 42. f7 {[%clk 0:00:05]}  Nd8 {[%clk 0:00:08]} 43. Rh3 {[%clk 0:00:03]}  Nxf7 {[%clk 0:00:06]} 44. Kxf7 {[%clk 0:00:03]}  h5 {[%clk 0:00:06]} 45. Kf6 {[%clk 0:00:02]}  Rc5 {[%clk 0:00:07]} 46. Ke6 {[%clk 0:00:02]}  b6 {[%clk 0:00:06]} 47. Kd6 {[%clk 0:00:02]}  Kb7 {[%clk 0:00:07]} 48. Rh4 {[%clk 0:00:02]}  Ka6 {[%clk 0:00:07]} 49. Rb4 {[%clk 0:00:01]}  Ka5 {[%clk 0:00:05]} 50. Rb1 {[%clk 0:00:01]}  h4 {[%clk 0:00:05]} 0-1


[Site "https://www.chess.com"]

[Event "Titled Tuesday Blitz February 22 Late 2022"]
[White "Budrewicz, Krzysztof"]
[Black "Estrada Nieto, Julian"]
[WhiteFideId "1127950"]
[BlackFideId "5101018"]
[WhiteElo "2248"]
[BlackElo "2246"]
[Result "1-0"]
[Round "11"]
[TimeControl "180+1"]
[Date "2022.02.23"]
[WhiteClock "0:00:26"]
[BlackClock "0:00:03"]

1. d4 {[%clk 0:03:00]}  d5 {[%clk 0:02:59]} 2. c4 {[%clk 0:02:59]}  dxc4 {[%clk 0:03:00]} 3. e4 {[%clk 0:02:59]}  e5 {[%clk 0:02:59]} 4. Nf3 {[%clk 0:02:58]}  exd4 {[%clk 0:03:00]} 5. Bxc4 {[%clk 0:02:59]}  Nc6 {[%clk 0:03:00]} 6. O-O {[%clk 0:02:59]}  Be6 {[%clk 0:03:00]} 7. Bxe6 {[%clk 0:02:59]}  fxe6 {[%clk 0:03:01]} 8. Qb3 {[%clk 0:02:59]}  Qd7 {[%clk 0:03:02]} 9. Qxb7 {[%clk 0:03:00]}  Rb8 {[%clk 0:03:02]} 10. Qa6 {[%clk 0:03:00]}  Nf6 {[%clk 0:03:03]} 11. e5 {[%clk 0:02:59]}  Ne4 {[%clk 0:02:59]} 12. Qe2 {[%clk 0:02:58]}  Nc5 {[%clk 0:02:55]} 13. Nbd2 {[%clk 0:02:57]}  Be7 {[%clk 0:02:52]} 14. Nc4 {[%clk 0:02:56]}  O-O {[%clk 0:02:50]} 15. Rd1 {[%clk 0:02:56]}  Qd5 {[%clk 0:02:42]} 16. b3 {[%clk 0:02:56]}  d3 {[%clk 0:02:38]} 17. Qe3 {[%clk 0:02:53]}  Nb4 {[%clk 0:02:30]} 18. Nd4 {[%clk 0:02:37]}  Ne4 {[%clk 0:01:57]} 19. f3 {[%clk 0:02:19]}  Bc5 {[%clk 0:01:56]} 20. Bb2 {[%clk 0:02:13]}  Nc2 {[%clk 0:01:39]} 21. Qxe4 {[%clk 0:02:04]}  Nxd4 {[%clk 0:01:26]} 22. Kh1 {[%clk 0:01:33]}  Qxe4 {[%clk 0:01:25]} 23. fxe4 {[%clk 0:01:34]}  Rf2 {[%clk 0:01:18]} 24. Rxd3 {[%clk 0:01:31]}  Rbf8 {[%clk 0:01:07]} 25. h3 {[%clk 0:01:31]}  Ne2 {[%clk 0:01:03]} 26. Kh2 {[%clk 0:00:53]}  Nf4 {[%clk 0:00:52]} 27. Rg3 {[%clk 0:00:53]}  Ne2 {[%clk 0:00:43]} 28. Rg4 {[%clk 0:00:53]}  h5 {[%clk 0:00:43]} 29. Rg5 {[%clk 0:00:52]}  Be3 {[%clk 0:00:41]} 30. Nxe3 {[%clk 0:00:52]}  h4 {[%clk 0:00:37]} 31. Nc4 {[%clk 0:00:46]}  Ng3 {[%clk 0:00:37]} 32. Rxg3 {[%clk 0:00:40]}  hxg3+ {[%clk 0:00:36]} 33. Kxg3 {[%clk 0:00:41]}  Re2 {[%clk 0:00:34]} 34. Rd1 {[%clk 0:00:40]}  Rff2 {[%clk 0:00:31]} 35. Bd4 {[%clk 0:00:36]}  Rxg2+ {[%clk 0:00:30]} 36. Kf3 {[%clk 0:00:36]}  Rxa2 {[%clk 0:00:25]} 37. Rg1 {[%clk 0:00:29]}  Rh2 {[%clk 0:00:22]} 38. Rg3 {[%clk 0:00:29]}  Rh1 {[%clk 0:00:21]} 39. Kg4 {[%clk 0:00:29]}  Re2 {[%clk 0:00:17]} 40. Bxa7 {[%clk 0:00:27]}  Rxe4+ {[%clk 0:00:17]} 41. Kg5 {[%clk 0:00:27]}  Kh7 {[%clk 0:00:15]} 42. Bc5 {[%clk 0:00:27]}  Rf1 {[%clk 0:00:15]} 43. Rg4 {[%clk 0:00:26]}  Rf5+ {[%clk 0:00:14]} 44. Kh4 {[%clk 0:00:27]}  Rxg4+ {[%clk 0:00:09]} 45. hxg4 {[%clk 0:00:25]}  Rf3 {[%clk 0:00:09]} 46. b4 {[%clk 0:00:25]}  Rc3 {[%clk 0:00:08]} 47. Na5 {[%clk 0:00:25]}  Kg6 {[%clk 0:00:08]} 48. Nc6 {[%clk 0:00:24]}  Kf7 {[%clk 0:00:06]} 49. Nd8+ {[%clk 0:00:24]}  Kg6 {[%clk 0:00:04]} 50. Nxe6 {[%clk 0:00:25]}  Rc4 {[%clk 0:00:04]} 51. Nxc7 {[%clk 0:00:25]}  Kf7 {[%clk 0:00:03]} 52. e6+ {[%clk 0:00:25]}  Kf6 {[%clk 0:00:03]} 53. e7 {[%clk 0:00:26]}  Kf7 {[%clk 0:00:03]} 54. e8=Q+ {[%clk 0:00:26]} 1-0


[Site "https://www.chess.com"]

[Event "Titled Tuesday Blitz February 22 Late 2022"]
[White "Cardoso Cardoso, Jose Gabriel"]
[Black "Perez Gormaz, Matias"]
[WhiteFideId "4430492"]
[BlackFideId "3406342"]
[WhiteElo "2451"]
[BlackElo "2352"]
[Result "1-0"]
[Round "11"]
[TimeControl "180+1"]
[Date "2022.02.22"]
[WhiteClock "0:00:05"]
[BlackClock "0:00:01"]

1. Nf3 {[%clk 0:03:00]}  d5 {[%clk 0:03:00]} 2. b3 {[%clk 0:02:59]}  Bf5 {[%clk 0:02:58]} 3. Bb2 {[%clk 0:02:59]}  e6 {[%clk 0:02:59]} 4. g3 {[%clk 0:02:58]}  Nf6 {[%clk 0:02:58]} 5. Bg2 {[%clk 0:02:58]}  h6 {[%clk 0:02:59]} 6. O-O {[%clk 0:02:58]}  c6 {[%clk 0:02:59]} 7. d3 {[%clk 0:02:58]}  Nbd7 {[%clk 0:02:59]} 8. Nbd2 {[%clk 0:02:58]}  Be7 {[%clk 0:03:00]} 9. c4 {[%clk 0:02:58]}  Bh7 {[%clk 0:03:00]} 10. Rc1 {[%clk 0:02:58]}  a5 {[%clk 0:03:00]} 11. a3 {[%clk 0:02:57]}  O-O {[%clk 0:03:01]} 12. Rc2 {[%clk 0:02:57]}  Re8 {[%clk 0:02:59]} 13. Qa1 {[%clk 0:02:57]}  Bd6 {[%clk 0:02:59]} 14. Ne5 {[%clk 0:02:45]}  Nc5 {[%clk 0:02:57]} 15. cxd5 {[%clk 0:02:30]}  exd5 {[%clk 0:02:55]} 16. Rfc1 {[%clk 0:02:29]}  Ne6 {[%clk 0:02:48]} 17. Nef3 {[%clk 0:02:27]}  Be7 {[%clk 0:02:45]} 18. Rd1 {[%clk 0:02:18]}  c5 {[%clk 0:02:36]} 19. e4 {[%clk 0:02:10]}  dxe4 {[%clk 0:01:58]} 20. dxe4 {[%clk 0:01:54]}  Qd3 {[%clk 0:01:57]} 21. Rcc1 {[%clk 0:01:35]}  Rad8 {[%clk 0:01:50]} 22. Ne5 {[%clk 0:01:32]}  Qa6 {[%clk 0:01:41]} 23. Bf1 {[%clk 0:01:21]}  Qb6 {[%clk 0:01:39]} 24. Ndc4 {[%clk 0:01:00]}  Qxb3 {[%clk 0:01:35]} 25. Nxa5 {[%clk 0:00:59]}  Qb6 {[%clk 0:01:21]} 26. Nac4 {[%clk 0:00:57]}  Qc7 {[%clk 0:01:17]} 27. Bc3 {[%clk 0:00:45]}  Rxd1 {[%clk 0:01:11]} 28. Rxd1 {[%clk 0:00:46]}  Nxe4 {[%clk 0:01:02]} 29. Rd7 {[%clk 0:00:41]}  Qb8 {[%clk 0:00:54]} 30. Bd3 {[%clk 0:00:21]}  Nf6 {[%clk 0:00:11]} 31. Bxh7+ {[%clk 0:00:18]}  Kxh7 {[%clk 0:00:12]} 32. Qb1+ {[%clk 0:00:18]}  Kg8 {[%clk 0:00:12]} 33. Rxb7 {[%clk 0:00:16]}  Qa8 {[%clk 0:00:08]} 34. Qb5 {[%clk 0:00:12]}  Nd5 {[%clk 0:00:07]} 35. Bb2 {[%clk 0:00:07]}  Bf6 {[%clk 0:00:04]} 36. Nxf7 {[%clk 0:00:06]}  Bxb2 {[%clk 0:00:01]} 37. Qxb2 {[%clk 0:00:06]}  Rf8 {[%clk 0:00:01]} 38. Nce5 {[%clk 0:00:05]} 1-0


[Site "https://www.chess.com"]

[Event "Titled Tuesday Blitz February 22 Late 2022"]
[White "Chernomordik, Pavel"]
[Black "Kovanova, Baira"]
[WhiteFideId "2804530"]
[BlackFideId "4164083"]
[WhiteElo "2249"]
[BlackElo "2190"]
[Result "1/2-1/2"]
[Round "11"]
[TimeControl "180+1"]
[Date "2022.02.23"]
[WhiteClock "0:01:34"]
[BlackClock "0:01:44"]

1. e4 {[%clk 0:03:00]}  e5 {[%clk 0:02:59]} 2. Nf3 {[%clk 0:03:00]}  Nc6 {[%clk 0:02:59]} 3. Bb5 {[%clk 0:02:56]}  a6 {[%clk 0:02:59]} 4. Ba4 {[%clk 0:02:56]}  Nge7 {[%clk 0:02:58]} 5. c3 {[%clk 0:02:52]}  g6 {[%clk 0:02:58]} 6. Qe2 {[%clk 0:02:50]}  Bg7 {[%clk 0:02:57]} 7. d3 {[%clk 0:02:49]}  O-O {[%clk 0:02:56]} 8. Bg5 {[%clk 0:02:39]}  h6 {[%clk 0:02:56]} 9. Be3 {[%clk 0:02:37]}  d6 {[%clk 0:02:54]} 10. h3 {[%clk 0:02:32]}  f5 {[%clk 0:02:52]} 11. Bb3+ {[%clk 0:02:30]}  Kh7 {[%clk 0:02:51]} 12. g4 {[%clk 0:02:24]}  f4 {[%clk 0:02:50]} 13. Bc1 {[%clk 0:02:19]}  Na5 {[%clk 0:02:39]} 14. Bc2 {[%clk 0:02:19]}  c5 {[%clk 0:02:38]} 15. Nbd2 {[%clk 0:02:16]}  Be6 {[%clk 0:02:38]} 16. Nf1 {[%clk 0:02:08]}  Nac6 {[%clk 0:02:37]} 17. N1h2 {[%clk 0:02:04]}  Qd7 {[%clk 0:02:31]} 18. O-O {[%clk 0:01:54]}  Bf6 {[%clk 0:02:11]} 19. Kh1 {[%clk 0:01:51]}  Kg7 {[%clk 0:01:59]} 20. Rg1 {[%clk 0:01:50]}  Rh8 {[%clk 0:01:50]} 21. d4 {[%clk 0:01:41]}  cxd4 {[%clk 0:01:50]} 22. cxd4 {[%clk 0:01:40]}  exd4 {[%clk 0:01:47]} 23. Bxf4 {[%clk 0:01:37]}  Rac8 {[%clk 0:01:44]} 24. a3 {[%clk 0:01:34]} 1/2-1/2


[Site "https://www.chess.com"]

[Event "Titled Tuesday Blitz February 22 Late 2022"]
[White "Clawitter, Craig"]
[Black "Desideri, Ricardo Maruchi"]
[WhiteFideId "2023105"]
[BlackFideId "2110440"]
[WhiteElo "2208"]
[BlackElo "1945"]
[Result "1-0"]
[Round "11"]
[TimeControl "180+1"]
[Date "2022.02.23"]
[WhiteClock "0:00:49"]
[BlackClock "0:00:02"]

1. e4 {[%clk 0:03:00]}  c5 {[%clk 0:02:59]} 2. Nf3 {[%clk 0:03:01]}  d6 {[%clk 0:02:58]} 3. d4 {[%clk 0:03:01]}  cxd4 {[%clk 0:02:57]} 4. Nxd4 {[%clk 0:03:02]}  Nf6 {[%clk 0:02:57]} 5. Nc3 {[%clk 0:03:03]}  a6 {[%clk 0:02:56]} 6. Be3 {[%clk 0:03:03]}  e6 {[%clk 0:02:54]} 7. Be2 {[%clk 0:03:00]}  b5 {[%clk 0:02:54]} 8. a3 {[%clk 0:02:58]}  Bb7 {[%clk 0:02:54]} 9. Bf3 {[%clk 0:02:57]}  Qc7 {[%clk 0:02:53]} 10. O-O {[%clk 0:02:57]}  Nbd7 {[%clk 0:02:52]} 11. g4 {[%clk 0:02:54]}  Ne5 {[%clk 0:02:51]} 12. g5 {[%clk 0:02:47]}  Nxf3+ {[%clk 0:02:47]} 13. Qxf3 {[%clk 0:02:45]}  Nd7 {[%clk 0:02:47]} 14. Qg3 {[%clk 0:02:35]}  Be7 {[%clk 0:02:44]} 15. Rad1 {[%clk 0:02:33]}  O-O {[%clk 0:02:42]} 16. f4 {[%clk 0:02:30]}  Nc5 {[%clk 0:02:39]} 17. f5 {[%clk 0:02:29]}  e5 {[%clk 0:02:18]} 18. f6 {[%clk 0:02:21]}  exd4 {[%clk 0:01:59]} 19. fxe7 {[%clk 0:02:20]}  Qxe7 {[%clk 0:02:00]} 20. Rxd4 {[%clk 0:02:12]}  Nxe4 {[%clk 0:01:36]} 21. Nxe4 {[%clk 0:02:10]}  Bxe4 {[%clk 0:01:35]} 22. Re1 {[%clk 0:02:02]}  d5 {[%clk 0:01:32]} 23. Bf4 {[%clk 0:01:59]}  Qc5 {[%clk 0:01:30]} 24. c3 {[%clk 0:01:55]}  Rfe8 {[%clk 0:01:24]} 25. h4 {[%clk 0:01:51]}  a5 {[%clk 0:01:17]} 26. h5 {[%clk 0:01:41]}  b4 {[%clk 0:01:08]} 27. h6 {[%clk 0:01:34]}  bxc3 {[%clk 0:00:56]} 28. bxc3 {[%clk 0:01:35]}  Rac8 {[%clk 0:00:53]} 29. Be5 {[%clk 0:01:26]}  Qb6 {[%clk 0:00:15]} 30. Bxg7 {[%clk 0:01:18]}  Rc4 {[%clk 0:00:11]} 31. Re3 {[%clk 0:01:13]}  Rec8 {[%clk 0:00:02]} 32. Qe5 {[%clk 0:01:02]}  Qb1+ {[%clk 0:00:02]} 33. Kf2 {[%clk 0:01:01]}  Qh1 {[%clk 0:00:02]} 34. Rxc4 {[%clk 0:00:50]}  Qg2+ {[%clk 0:00:02]} 35. Ke1 {[%clk 0:00:49]} 1-0


[Site "https://www.chess.com"]

[Event "Titled Tuesday Blitz February 22 Late 2022"]
[White "De Souza, Cristiano Gomes"]
[Black "Stanisz, Patryk"]
[WhiteFideId "2151758"]
[BlackFideId "1123106"]
[WhiteElo "2068"]
[BlackElo "1876"]
[Result "1-0"]
[Round "11"]
[TimeControl "180+1"]
[Date "2022.02.23"]
[WhiteClock "0:01:49"]
[BlackClock "0:00:23"]

1. d4 {[%clk 0:03:00]}  f5 {[%clk 0:02:57]} 2. c4 {[%clk 0:02:59]}  Nf6 {[%clk 0:02:57]} 3. g3 {[%clk 0:02:59]}  g6 {[%clk 0:02:56]} 4. Bg2 {[%clk 0:03:00]}  Bg7 {[%clk 0:02:56]} 5. Nf3 {[%clk 0:03:00]}  O-O {[%clk 0:02:57]} 6. O-O {[%clk 0:03:01]}  d6 {[%clk 0:02:57]} 7. b3 {[%clk 0:03:01]}  Qe8 {[%clk 0:02:56]} 8. Ba3 {[%clk 0:03:00]}  Na6 {[%clk 0:02:52]} 9. Nc3 {[%clk 0:03:00]}  Bd7 {[%clk 0:02:52]} 10. Rc1 {[%clk 0:03:00]}  h6 {[%clk 0:02:49]} 11. d5 {[%clk 0:03:00]}  g5 {[%clk 0:02:49]} 12. Nd4 {[%clk 0:02:59]}  Qh5 {[%clk 0:02:23]} 13. Qd3 {[%clk 0:02:52]}  f4 {[%clk 0:02:15]} 14. Ne6 {[%clk 0:02:48]}  Ng4 {[%clk 0:02:04]} 15. h3 {[%clk 0:02:42]}  Ne5 {[%clk 0:02:04]} 16. Qe4 {[%clk 0:02:34]}  Bxe6 {[%clk 0:01:46]} 17. dxe6 {[%clk 0:02:34]}  c6 {[%clk 0:01:47]} 18. Rcd1 {[%clk 0:02:29]}  Nc7 {[%clk 0:01:33]} 19. Rxd6 {[%clk 0:02:20]}  exd6 {[%clk 0:01:21]} 20. Bxd6 {[%clk 0:02:18]}  Nxe6 {[%clk 0:00:56]} 21. Bxe5 {[%clk 0:02:16]}  fxg3 {[%clk 0:00:48]} 22. fxg3 {[%clk 0:02:13]}  Rxf1+ {[%clk 0:00:47]} 23. Bxf1 {[%clk 0:02:13]}  Rf8 {[%clk 0:00:38]} 24. Bg2 {[%clk 0:02:12]}  Qf7 {[%clk 0:00:37]} 25. Nd1 {[%clk 0:02:04]}  Qf5 {[%clk 0:00:29]} 26. Bxg7 {[%clk 0:01:59]}  Nxg7 {[%clk 0:00:25]} 27. Qxf5 {[%clk 0:01:53]}  Nxf5 {[%clk 0:00:23]} 28. g4 {[%clk 0:01:49]} 1-0


[Site "https://www.chess.com"]

[Event "Titled Tuesday Blitz February 22 Late 2022"]
[White "Deac, Bogdan-Daniel"]
[Black "Timofeev, Artyom"]
[WhiteFideId "1226380"]
[BlackFideId "4140419"]
[WhiteElo "2646"]
[BlackElo "2583"]
[Result "1-0"]
[Round "11"]
[TimeControl "180+1"]
[Date "2022.02.22"]
[WhiteClock "0:00:07"]
[BlackClock "0:00:04"]

1. e4 {[%clk 0:03:00]}  c5 {[%clk 0:02:59]} 2. Nf3 {[%clk 0:03:01]}  Nc6 {[%clk 0:02:59]} 3. Bb5 {[%clk 0:03:00]}  d6 {[%clk 0:02:59]} 4. O-O {[%clk 0:02:59]}  Bd7 {[%clk 0:02:59]} 5. c3 {[%clk 0:02:58]}  Nf6 {[%clk 0:02:58]} 6. Re1 {[%clk 0:02:58]}  a6 {[%clk 0:02:58]} 7. Bf1 {[%clk 0:02:57]}  Bg4 {[%clk 0:02:51]} 8. d4 {[%clk 0:02:56]}  Bxf3 {[%clk 0:02:49]} 9. gxf3 {[%clk 0:02:55]}  g5 {[%clk 0:02:49]} 10. Na3 {[%clk 0:02:36]}  Nh5 {[%clk 0:02:41]} 11. e5 {[%clk 0:02:19]}  e6 {[%clk 0:02:19]} 12. exd6 {[%clk 0:02:09]}  Bxd6 {[%clk 0:02:12]} 13. d5 {[%clk 0:02:00]}  Ne5 {[%clk 0:01:57]} 14. dxe6 {[%clk 0:01:58]}  Qf6 {[%clk 0:01:28]} 15. f4 {[%clk 0:00:33]}  Nxf4 {[%clk 0:00:47]} 16. Qxd6 {[%clk 0:00:30]}  Nf3+ {[%clk 0:00:46]} 17. Kh1 {[%clk 0:00:30]}  Nxe1 {[%clk 0:00:46]} 18. Bxf4 {[%clk 0:00:22]}  Qxf4 {[%clk 0:00:46]} 19. exf7+ {[%clk 0:00:20]}  Kxf7 {[%clk 0:00:43]} 20. Bc4+ {[%clk 0:00:16]}  Kg7 {[%clk 0:00:38]} 21. Qe7+ {[%clk 0:00:15]}  Kg6 {[%clk 0:00:32]} 22. Qe6+ {[%clk 0:00:09]}  Qf6 {[%clk 0:00:28]} 23. Rxe1 {[%clk 0:00:09]}  Qxe6 {[%clk 0:00:28]} 24. Rxe6+ {[%clk 0:00:09]}  Kf5 {[%clk 0:00:28]} 25. Rb6 {[%clk 0:00:09]}  Rad8 {[%clk 0:00:22]} 26. Rxb7 {[%clk 0:00:08]}  Rd2 {[%clk 0:00:22]} 27. Rf7+ {[%clk 0:00:05]}  Kg6 {[%clk 0:00:20]} 28. Rf3 {[%clk 0:00:05]}  Rxb2 {[%clk 0:00:19]} 29. h3 {[%clk 0:00:05]}  Rd8 {[%clk 0:00:15]} 30. Bb3 {[%clk 0:00:04]}  Rdd2 {[%clk 0:00:12]} 31. Kg2 {[%clk 0:00:03]}  Re2 {[%clk 0:00:09]} 32. Nc4 {[%clk 0:00:04]}  Rb1 {[%clk 0:00:09]} 33. Ne3 {[%clk 0:00:04]}  Rbb2 {[%clk 0:00:08]} 34. Nc4 {[%clk 0:00:04]}  Rb1 {[%clk 0:00:08]} 35. Ne5+ {[%clk 0:00:05]}  Kg7 {[%clk 0:00:07]} 36. Rf7+ {[%clk 0:00:05]}  Kh6 {[%clk 0:00:07]} 37. Ng4+ {[%clk 0:00:04]}  Kg6 {[%clk 0:00:08]} 38. Rf6+ {[%clk 0:00:04]}  Kg7 {[%clk 0:00:08]} 39. Rxa6 {[%clk 0:00:05]}  Rbb2 {[%clk 0:00:07]} 40. Ra7+ {[%clk 0:00:04]}  Kg6 {[%clk 0:00:07]} 41. Ra6+ {[%clk 0:00:05]}  Kg7 {[%clk 0:00:07]} 42. Bc4 {[%clk 0:00:05]}  Rec2 {[%clk 0:00:07]} 43. Ra7+ {[%clk 0:00:04]}  Kf8 {[%clk 0:00:07]} 44. Rxh7 {[%clk 0:00:04]}  Rxc3 {[%clk 0:00:07]} 45. Ne5 {[%clk 0:00:05]}  Ke8 {[%clk 0:00:06]} 46. Rg7 {[%clk 0:00:04]}  Rb4 {[%clk 0:00:02]} 47. Rxg5 {[%clk 0:00:04]}  Rbxc4 {[%clk 0:00:02]} 48. Nxc4 {[%clk 0:00:05]}  Rxc4 {[%clk 0:00:03]} 49. Rg4 {[%clk 0:00:05]}  Rc2 {[%clk 0:00:02]} 50. a4 {[%clk 0:00:05]}  Kd7 {[%clk 0:00:03]} 51. h4 {[%clk 0:00:06]}  c4 {[%clk 0:00:03]} 52. h5 {[%clk 0:00:06]}  Kd6 {[%clk 0:00:04]} 53. h6 {[%clk 0:00:06]}  Ra2 {[%clk 0:00:04]} 54. h7 {[%clk 0:00:06]}  Rxa4 {[%clk 0:00:04]} 55. h8=Q {[%clk 0:00:07]} 1-0


[Site "https://www.chess.com"]

[Event "Titled Tuesday Blitz February 22 Late 2022"]
[White "Erdogdu, Mert"]
[Black "Barp, Alberto"]
[WhiteFideId "6301495"]
[BlackFideId "872555"]
[WhiteElo "2485"]
[BlackElo "2229"]
[Result "0-1"]
[Round "11"]
[TimeControl "180+1"]
[Date "2022.02.22"]
[WhiteClock "0:00:02"]
[BlackClock "0:00:17"]

1. e4 {[%clk 0:03:00]}  c5 {[%clk 0:02:58]} 2. Nf3 {[%clk 0:03:00]}  a6 {[%clk 0:02:57]} 3. c4 {[%clk 0:02:59]}  Nc6 {[%clk 0:02:57]} 4. d4 {[%clk 0:02:58]}  cxd4 {[%clk 0:02:58]} 5. Nxd4 {[%clk 0:02:59]}  e5 {[%clk 0:02:59]} 6. Nb3 {[%clk 0:02:52]}  Nf6 {[%clk 0:02:54]} 7. Bd3 {[%clk 0:02:48]}  Bb4+ {[%clk 0:02:54]} 8. N3d2 {[%clk 0:02:42]}  O-O {[%clk 0:02:52]} 9. O-O {[%clk 0:02:41]}  d6 {[%clk 0:02:52]} 10. a3 {[%clk 0:02:41]}  Bc5 {[%clk 0:02:52]} 11. Nc3 {[%clk 0:02:41]}  Nd4 {[%clk 0:02:36]} 12. b4 {[%clk 0:02:39]}  Ba7 {[%clk 0:02:36]} 13. Kh1 {[%clk 0:02:22]}  Ng4 {[%clk 0:02:29]} 14. g3 {[%clk 0:01:26]}  f5 {[%clk 0:02:24]} 15. exf5 {[%clk 0:01:17]}  Qg5 {[%clk 0:02:04]} 16. Nde4 {[%clk 0:00:26]}  Qh5 {[%clk 0:02:04]} 17. h4 {[%clk 0:00:26]}  Bxf5 {[%clk 0:02:04]} 18. Kg2 {[%clk 0:00:22]}  Rad8 {[%clk 0:01:49]} 19. Nd5 {[%clk 0:00:20]}  Qf7 {[%clk 0:01:24]} 20. Ra2 {[%clk 0:00:19]}  h6 {[%clk 0:01:22]} 21. Nec3 {[%clk 0:00:15]}  Bxd3 {[%clk 0:01:16]} 22. Qxd3 {[%clk 0:00:16]}  Nf3 {[%clk 0:01:08]} 23. Qe4 {[%clk 0:00:11]}  Nfh2 {[%clk 0:01:02]} 24. Re1 {[%clk 0:00:06]}  Nxf2 {[%clk 0:00:54]} 25. Qe2 {[%clk 0:00:03]}  Nhg4 {[%clk 0:00:48]} 26. Ne4 {[%clk 0:00:03]}  Qf5 {[%clk 0:00:38]} 27. Ne7+ {[%clk 0:00:02]}  Kh7 {[%clk 0:00:35]} 28. Nxf5 {[%clk 0:00:03]}  Rxf5 {[%clk 0:00:35]} 29. Qc2 {[%clk 0:00:03]}  g6 {[%clk 0:00:33]} 30. Re2 {[%clk 0:00:03]}  Nh1 {[%clk 0:00:21]} 31. Nxd6 {[%clk 0:00:01]}  Rxd6 {[%clk 0:00:19]} 32. Kxh1 {[%clk 0:00:02]}  Rf1+ {[%clk 0:00:19]} 33. Kg2 {[%clk 0:00:02]}  Rg1+ {[%clk 0:00:19]} 34. Kf3 {[%clk 0:00:03]}  h5 {[%clk 0:00:19]} 35. Ke4 {[%clk 0:00:02]}  Rd4+ {[%clk 0:00:19]} 36. Kf3 {[%clk 0:00:02]}  e4+ {[%clk 0:00:18]} 37. Kf4 {[%clk 0:00:02]}  Bb8+ {[%clk 0:00:17]} 0-1


[Site "https://www.chess.com"]

[Event "Titled Tuesday Blitz February 22 Late 2022"]
[White "Gatterer, Florian"]
[Black "Papp, Levente"]
[WhiteFideId "811688"]
[BlackFideId "751243"]
[WhiteElo "2218"]
[BlackElo "2308"]
[Result "0-1"]
[Round "11"]
[TimeControl "180+1"]
[Date "2022.02.23"]
[WhiteClock "0:00:51"]
[BlackClock "0:00:51"]

1. b3 {[%clk 0:03:00]}  d6 {[%clk 0:02:59]} 2. d4 {[%clk 0:02:59]}  Nd7 {[%clk 0:03:00]} 3. Bb2 {[%clk 0:02:59]}  Ngf6 {[%clk 0:03:00]} 4. g3 {[%clk 0:02:57]}  g6 {[%clk 0:03:00]} 5. Bg2 {[%clk 0:02:57]}  Bg7 {[%clk 0:03:01]} 6. h4 {[%clk 0:02:57]}  h6 {[%clk 0:02:59]} 7. Nd2 {[%clk 0:02:55]}  O-O {[%clk 0:02:59]} 8. Ngf3 {[%clk 0:02:55]}  e5 {[%clk 0:02:58]} 9. dxe5 {[%clk 0:02:54]}  Ng4 {[%clk 0:02:58]} 10. Qc1 {[%clk 0:02:52]}  dxe5 {[%clk 0:02:56]} 11. c4 {[%clk 0:02:48]}  Re8 {[%clk 0:02:50]} 12. e3 {[%clk 0:02:42]}  Nc5 {[%clk 0:02:46]} 13. Bf1 {[%clk 0:02:42]}  Bf5 {[%clk 0:02:35]} 14. Qc3 {[%clk 0:02:34]}  Bf6 {[%clk 0:02:01]} 15. Rd1 {[%clk 0:02:19]}  Qe7 {[%clk 0:01:58]} 16. Ba3 {[%clk 0:02:12]}  Rad8 {[%clk 0:01:24]} 17. Qb4 {[%clk 0:02:06]}  b6 {[%clk 0:01:20]} 18. Be2 {[%clk 0:01:54]}  Bd3 {[%clk 0:01:15]} 19. Qc3 {[%clk 0:01:40]}  e4 {[%clk 0:01:12]} 20. Nd4 {[%clk 0:01:39]}  Bxd4 {[%clk 0:01:12]} 21. exd4 {[%clk 0:01:36]}  e3 {[%clk 0:01:13]} 22. Bxd3 {[%clk 0:01:02]}  exf2+ {[%clk 0:01:01]} 23. Kf1 {[%clk 0:01:02]}  Qe1+ {[%clk 0:01:01]} 24. Kg2 {[%clk 0:01:02]}  Ne3+ {[%clk 0:01:00]} 25. Kh3 {[%clk 0:01:03]}  Nxd1 {[%clk 0:00:59]} 26. Qc2 {[%clk 0:01:00]}  Qxh1+ {[%clk 0:00:59]} 27. Kg4 {[%clk 0:01:00]}  Ne3+ {[%clk 0:00:58]} 28. Kf4 {[%clk 0:00:59]}  Rxd4+ {[%clk 0:00:57]} 29. Ne4 {[%clk 0:00:58]}  Nxc2 {[%clk 0:00:51]} 30. Bxc5 {[%clk 0:00:53]}  Rdxe4+ {[%clk 0:00:50]} 31. Bxe4 {[%clk 0:00:51]}  Rxe4# {[%clk 0:00:51]} 0-1


[Site "https://www.chess.com"]